Service area,Service sub division,TVBC Service,Expense type,Detailed expense type,TVBC account code,Date Paid,Transaction Reference, Nett Value ,Supplier Name
Cultural & Related,Open Spaces,Environmental,Supplies & Services,"Equipment, Furniture & Materials",Purchase Equip + Materials,08/04/2021,339712,-19800,T H White Ltd
Cultural & Related,Open Spaces,Environmental,Transport Related Expenditure,Direct Transport Costs,Repair Materials,29/04/2021,340724,-4500,Hunt Forest Group Ltd
Planning & Development,Community Development,Community and Leisure ,Supplies & Services,Grants & Subscriptions,Grants,14/04/2021,340117,500,Lion Oak Court Social Club
Cultural & Related,Culture & Heritage,Premises & Asset Management,Premises related Expenditure,Repairs Alterations & Maintenance of Buildings,Planned Maintenance - Non Est,22/04/2021,340722,220,Harrison Flagpoles
Central Services to the Public,Management & Support Services,Premises & Asset Management,Premises related Expenditure,Repairs Alterations & Maintenance of Buildings,Planned Maintenance - Non Est,22/04/2021,340722,220,Harrison Flagpoles
Environmental & Regulatory,Waste management,Environmental,Supplies & Services,Miscellaneous Expenses,Vehicle insurance claims,15/04/2021,339493,446.63,Adams Morey Ltd
Planning & Development,Development Control,Planning & Building,Transport Related Expenditure,Contract Hire and Operating Leases,Officer lease cars,29/04/2021,341284,541.02,Arval Uk Ltd
Environmental & Regulatory,Waste management,Environmental,Transport Related Expenditure,Direct Transport Costs,Repair Materials,29/04/2021,341306,452.25,Dennis Eagle Ltd
Cultural & Related,Recreation & Sport,Community and Leisure ,Employees,Indirect Employee Expenses,Temporary Staff,29/04/2021,340696,454.22,Adecco Uk Ltd
Central Services to the Public,Management & Support Services,IT,Supplies & Services,Communications & Computing,Land Line Telephone Charges,22/04/2021,340127,457.21,Gamma
Cultural & Related,Recreation & Sport,Community and Leisure ,Employees,Indirect Employee Expenses,Temporary Staff,15/04/2021,339945,458.46,Adecco Uk Ltd
Cultural & Related,Recreation & Sport,Community and Leisure ,Employees,Indirect Employee Expenses,Temporary Staff,15/04/2021,339960,458.46,Adecco Uk Ltd
Cultural & Related,Recreation & Sport,Community and Leisure ,Employees,Indirect Employee Expenses,Temporary Staff,15/04/2021,339962,458.46,Adecco Uk Ltd
Cultural & Related,Recreation & Sport,Community and Leisure ,Employees,Indirect Employee Expenses,Temporary Staff,29/04/2021,340689,458.46,Adecco Uk Ltd
Cultural & Related,Recreation & Sport,Community and Leisure ,Employees,Indirect Employee Expenses,Temporary Staff,29/04/2021,340692,458.46,Adecco Uk Ltd
Central Services to the Public,Management & Support Services,IT,Supplies & Services,Communications & Computing,Communication Links,29/04/2021,341312,460.53,Zen Internet Limited
Cultural & Related,Recreation & Sport,Community and Leisure ,Employees,Indirect Employee Expenses,Temporary Staff,15/04/2021,339940,466.95,Adecco Uk Ltd
Cultural & Related,Open Spaces,Environmental,Transport Related Expenditure,Direct Transport Costs,Petrol,29/04/2021,340984,467,Fuel Card Services Ltd
Central Services to the Public,Local Tax Collection,Revenues,Supplies & Services,"Printing, Stationery & General Office Expenses",Stationery,07/04/2021,339501,301,Encore Envelopes
Housing Services,Housing Benefits ,Revenues,Supplies & Services,"Printing, Stationery & General Office Expenses",Stationery,07/04/2021,339501,172.7,Encore Envelopes
Environmental & Regulatory,Waste management,Environmental,Supplies & Services,"Equipment, Furniture & Materials",Purchase Equip + Materials,15/04/2021,340002,480,Morgard Court Ltd T/A Gardners
Cultural & Related,Recreation & Sport,Premises & Asset Management,Premises related Expenditure,Energy Costs,Gas,15/04/2021,333639,484.62,Total Gas & Power Ltd
Central Services to the Public,Management & Support Services,Environmental,Supplies & Services,"Printing, Stationery & General Office Expenses",Internal Printing ,22/04/2021,339993,493.02,Ricoh Uk Ltd
Environmental & Regulatory,Community Development,Community and Leisure ,Supplies & Services,Grants & Subscriptions,Subscriptions,15/04/2021,340098,500,Locality
Central Services to the Public,Management & Support Services,Community and Leisure ,Supplies & Services,Services,Training Courses,08/04/2021,339702,500,Ecological Planning & Research Ltd
Central Services to the Public,Elections,Legal & Democratic,Supplies & Services,Communications & Computing,Computer Hardware,22/04/2021,340713,504,Pure Technology Group
Planning & Development,Development Control,Planning & Building,Supplies & Services,Communications & Computing,Computer Hardware,08/04/2021,339036,504,Pure Technology Group
Central Services to the Public,Management & Support Services,Finance,Supplies & Services,"Printing, Stationery & General Office Expenses",Postage Costs,15/04/2021,339487,509.24,Whistl Uk Ltd
Cultural & Related,Recreation & Sport,Community and Leisure ,Employees,Indirect Employee Expenses,Temporary Staff,15/04/2021,339961,509.4,Adecco Uk Ltd
Cultural & Related,Recreation & Sport,Community and Leisure ,Employees,Indirect Employee Expenses,Temporary Staff,29/04/2021,340687,509.4,Adecco Uk Ltd
Cultural & Related,Open Spaces,Environmental,Transport Related Expenditure,Direct Transport Costs,Repair Materials,15/04/2021,339972,510.56,King Feeders Uk
Cultural & Related,Open Spaces,Community and Leisure ,Premises related Expenditure,Grounds Maintenance Costs,Gm - Additional Works,08/04/2021,338349,514.5,Wildflower Turf Ltd
Central Services to the Public,Management & Support Services,Environmental,Transport Related Expenditure,Direct Transport Costs,Repair Materials,15/04/2021,339964,520.8,Terberg Matec Uk Limited
External Trading Accounts,Business Parks,Premises & Asset Management,Supplies & Services,Communications & Computing,Land Line Telephone Charges,22/04/2021,340846,26.39,Virgin Media Payments Ltd
Cultural & Related,Culture & Heritage,Premises & Asset Management,Supplies & Services,Communications & Computing,Land Line Telephone Charges,22/04/2021,340846,26,Virgin Media Payments Ltd
Cultural & Related,Culture & Heritage,Premises & Asset Management,Supplies & Services,Communications & Computing,Land Line Telephone Charges,22/04/2021,340846,39,Virgin Media Payments Ltd
Central Services to the Public,Management & Support Services,IT,Supplies & Services,Communications & Computing,Communication Links,22/04/2021,340846,26,Virgin Media Payments Ltd
Central Services to the Public,Management & Support Services,IT,Supplies & Services,Communications & Computing,Communication Links,22/04/2021,340846,137,Virgin Media Payments Ltd
Cultural & Related,Recreation & Sport,Community and Leisure ,Supplies & Services,Communications & Computing,Land Line Telephone Charges,22/04/2021,340846,26,Virgin Media Payments Ltd
Cultural & Related,Recreation & Sport,Community and Leisure ,Supplies & Services,Communications & Computing,Land Line Telephone Charges,22/04/2021,340846,0,Virgin Media Payments Ltd
Cultural & Related,Recreation & Sport,Community and Leisure ,Supplies & Services,Communications & Computing,Land Line Telephone Charges,22/04/2021,340846,13,Virgin Media Payments Ltd
Cultural & Related,Culture & Heritage,Community and Leisure ,Supplies & Services,Communications & Computing,Communication Links,22/04/2021,340846,74.05,Virgin Media Payments Ltd
"Highways, Roads & Transport",Parking Services,Plan Pol & Transport,Supplies & Services,Communications & Computing,Alarm Lines,22/04/2021,340846,37,Virgin Media Payments Ltd
Central Services to the Public,Management & Support Services,Environmental,Supplies & Services,Communications & Computing,Land Line Telephone Charges,22/04/2021,340846,53.49,Virgin Media Payments Ltd
Central Services to the Public,Emergency Planning,Corporate & Democratic,Supplies & Services,Communications & Computing,Land Line Telephone Charges,22/04/2021,340846,78,Virgin Media Payments Ltd
"Highways, Roads & Transport",Parking Services,Plan Pol & Transport,Supplies & Services,"Equipment, Furniture & Materials",Purchase Equip + Materials,08/04/2021,339479,530,Vodafone Limited
Environmental & Regulatory,Street Cleansing (not chargeable to Highways),Environmental,Supplies & Services,Miscellaneous Expenses,Hazardous / Fly Tipped Waste,22/04/2021,339983,535,Bkp Waste & Recycling Ltd
Cultural & Related,Recreation & Sport,Community and Leisure ,Employees,Indirect Employee Expenses,Temporary Staff,15/04/2021,339949,539.12,Adecco Uk Ltd
Cultural & Related,Recreation & Sport,Community and Leisure ,Employees,Indirect Employee Expenses,Temporary Staff,15/04/2021,339955,539.12,Adecco Uk Ltd
Cultural & Related,Recreation & Sport,Community and Leisure ,Employees,Indirect Employee Expenses,Temporary Staff,15/04/2021,339954,543.36,Adecco Uk Ltd
Cultural & Related,Recreation & Sport,Community and Leisure ,Employees,Indirect Employee Expenses,Temporary Staff,29/04/2021,340688,543.36,Adecco Uk Ltd
Environmental & Regulatory,Waste & Recycling Management,Environmental,Supplies & Services,"Printing, Stationery & General Office Expenses",External Printing,08/04/2021,339609,551.56,Steele Signs
Central Services to the Public,Management & Support Services,IT,Supplies & Services,"Equipment, Furniture & Materials",IT Supp and Serv AMP,22/04/2021,340566,552.46,Exampleit Ltd
Planning & Development,Community Development,Community and Leisure ,Supplies & Services,Grants & Subscriptions,Grants,29/04/2021,341717,666,Carers Together
Central Services to the Public,Local Tax Collection,Revenues,Supplies & Services,"Equipment, Furniture & Materials",Equipment Lease Rentals,15/04/2021,340095,141.83,Quadient Finance Uk Ltd
Central Services to the Public,Local Tax Collection,Revenues,Supplies & Services,"Equipment, Furniture & Materials",Equipment Lease Rentals,15/04/2021,340095,187.22,Quadient Finance Uk Ltd
Housing Services,Housing Benefits ,Revenues,Supplies & Services,"Equipment, Furniture & Materials",Equipment Lease Rentals,15/04/2021,340095,119.14,Quadient Finance Uk Ltd
Central Services to the Public,Local Tax Collection,Revenues,Supplies & Services,"Equipment, Furniture & Materials",Equipment Lease Rentals,15/04/2021,340095,119.14,Quadient Finance Uk Ltd
Environmental & Regulatory,Regulatory Services,Housing and Environmental Health ,Supplies & Services,Grants and subscriptions,Capital Grants,22/04/2021,340973,693,Architectural Survey Services Ltd
Environmental & Regulatory,Regulatory Services,Legal & Democratic,Supplies & Services,Grants & Subscriptions,Subscriptions,08/04/2021,339704,578,Institute Of Licensing (Events) Ltd
Environmental & Regulatory,Waste management,Environmental,Employees,Indirect Employee Expenses,Agency Staff - Waged Posts,29/04/2021,341424,594,Golden Orb Solutions
"Highways, Roads & Transport",Highways and roads - maintenance,Plan Pol & Transport,Premises related Expenditure,Repairs Alterations & Maintenance of Buildings,General Repairs,08/04/2021,339033,596.57,Clear Channel Uk Ltd
Central Services to the Public,Management & Support Services,Finance,Supplies & Services,"Printing, Stationery & General Office Expenses",Postage Costs,29/04/2021,340826,601.54,Whistl Uk Ltd
External Trading Accounts,Business Parks,Premises & Asset Management,Supplies & Services,Miscellaneous Expenses,Waste Collection,29/04/2021,341278,608.16,Basingstoke Skip Hire & Sthrn Waste Mgt Ltd
External Trading Accounts,Business Parks,Premises & Asset Management,Supplies & Services,Miscellaneous Expenses,Waste Collection,22/04/2021,340517,608.26,Suez Recycling And Recovery Uk Ltd
External Trading Accounts,Business Parks,Premises & Asset Management,Supplies & Services,Miscellaneous Expenses,Waste Collection,22/04/2021,340541,608.76,Basingstoke Skip Hire & Sthrn Waste Mgt Ltd
Planning & Development,Economic Development,Planning Policy & Economic Development ,Supplies & Services,Grants & Subscriptions,Grants,22/04/2021,340753,750,Everydayz Dog Walking
Planning & Development,Economic Development,Planning Policy & Economic Development ,Supplies & Services,Grants & Subscriptions,Grants,15/04/2021,340120,750,Singhum Ltd
Central Services to the Public,Management & Support Services,Premises & Asset Management,Third Party Payments,Other Establishments,Private Contractors,15/04/2021,339938,656.45,Doorgear Limited
Cultural & Related,Recreation & Sport,Community and Leisure ,Employees,Indirect Employee Expenses,Temporary Staff,15/04/2021,339958,666.47,Adecco Uk Ltd
Central Services to the Public,Management & Support Services,Legal & Democratic,Supplies & Services,Grants & Subscriptions,Subscriptions,29/04/2021,341274,800,Lawyers In Local Government
Cultural & Related,Culture & Heritage,Community and Leisure ,Supplies & Services,Miscellaneous Expenses,Booking Of Acts,22/04/2021,339939,690.15,Coram Shakespeare Schools Foundation
Cultural & Related,Recreation & Sport,Community and Leisure ,Employees,Indirect Employee Expenses,Temporary Staff,15/04/2021,339953,674.96,Adecco Uk Ltd
Environmental & Regulatory,Waste management,Environmental,Transport Related Expenditure,Direct Transport Costs,Repair Materials,15/04/2021,339559,679.1,Dennis Eagle Ltd
Central Services to the Public,Local Tax Collection,Revenues,Supplies & Services,Communications & Computing,Software Maintenance,15/04/2021,340109,690,Victoria Solutions Limited
Central Services to the Public,Management & Support Services,IT,Supplies & Services,Communications & Computing,Mobile Telephone Charges,29/04/2021,340977,681.73,Vodafone Limited
Cultural & Related,Recreation & Sport,Community and Leisure ,Supplies & Services,Communications & Computing,Mobile Telephone Charges,29/04/2021,340977,7.12,Vodafone Limited
"Highways, Roads & Transport",Highways and roads - maintenance,Plan Pol & Transport,Supplies & Services,Communications & Computing,Mobile Telephone Charges,29/04/2021,340977,7,Vodafone Limited
Central Services to the Public,Management & Support Services,Housing and Environmental Health ,Supplies & Services,Communications & Computing,Computer Hardware,22/04/2021,340139,697.42,Exampleit Ltd
Cultural & Related,Recreation & Sport,Community and Leisure ,Supplies & Services,Communications & Computing,Computer Hardware,22/04/2021,340134,697.52,Exampleit Ltd
Planning & Development,Development Control,Planning & Building,Supplies & Services,Communications & Computing,Computer Hardware,22/04/2021,340141,697.52,Exampleit Ltd
Central Services to the Public,Local Tax Collection,Revenues,Supplies & Services,Communications & Computing,Computer Hardware,29/04/2021,340136,697.52,Exampleit Ltd
Central Services to the Public,Management & Support Services,Environmental,Supplies & Services,Communications & Computing,Computer Hardware,22/04/2021,340137,697.53,Exampleit Ltd
Central Services to the Public,Management & Support Services,Finance,Supplies & Services,"Printing, Stationery & General Office Expenses",Postage Costs,15/04/2021,339486,724.33,Whistl Uk Ltd
Cultural & Related,Recreation & Sport,Community and Leisure ,Supplies & Services,Communications & Computing,Computer Hardware,08/04/2021,338429,732,Pure Technology Group
Central Services to the Public,Management & Support Services,Premises & Asset Management,Supplies & Services,Communications & Computing,Telephone Tracking System,15/04/2021,339589,48,Teletrac Navman (Uk) Ltd
Environmental & Regulatory,Regulatory Services,Housing and Environmental Health ,Supplies & Services,Communications & Computing,Telephone Tracking System,15/04/2021,339589,6,Teletrac Navman (Uk) Ltd
Environmental & Regulatory,Regulatory Services,Housing and Environmental Health ,Supplies & Services,Communications & Computing,Telephone Tracking System,15/04/2021,339589,12,Teletrac Navman (Uk) Ltd
Cultural & Related,Open Spaces,Community and Leisure ,Supplies & Services,Communications & Computing,Telephone Tracking System,15/04/2021,339589,6,Teletrac Navman (Uk) Ltd
Cultural & Related,Open Spaces,Community and Leisure ,Supplies & Services,Communications & Computing,Telephone Tracking System,15/04/2021,339589,6,Teletrac Navman (Uk) Ltd
"Highways, Roads & Transport",Parking Services,Plan Pol & Transport,Supplies & Services,Communications & Computing,Telephone Tracking System,15/04/2021,339589,12,Teletrac Navman (Uk) Ltd
Cultural & Related,Open Spaces,Environmental,Supplies & Services,Communications & Computing,Telephone Tracking System,15/04/2021,339589,273.99,Teletrac Navman (Uk) Ltd
Environmental & Regulatory,Waste & Recycling Management,Environmental,Supplies & Services,Communications & Computing,Telephone Tracking System,15/04/2021,339589,36,Teletrac Navman (Uk) Ltd
Environmental & Regulatory,Street Cleansing (not chargeable to Highways),Environmental,Supplies & Services,Communications & Computing,Telephone Tracking System,15/04/2021,339589,174.7,Teletrac Navman (Uk) Ltd
Environmental & Regulatory,Waste management,Environmental,Supplies & Services,Communications & Computing,Telephone Tracking System,15/04/2021,339589,128,Teletrac Navman (Uk) Ltd
Environmental & Regulatory,Waste management,Environmental,Supplies & Services,Communications & Computing,Telephone Tracking System,15/04/2021,339589,12,Teletrac Navman (Uk) Ltd
Central Services to the Public,Management & Support Services,Environmental,Supplies & Services,Communications & Computing,Telephone Tracking System,15/04/2021,339589,18,Teletrac Navman (Uk) Ltd
Central Services to the Public,Management & Support Services,Environmental,Supplies & Services,"Clothes, Uniforms & Laundry",Clothing + Uniforms,29/04/2021,341286,374.33,Smi Group
Central Services to the Public,Management & Support Services,Environmental,Supplies & Services,Miscellaneous Expenses,Health And Safety,29/04/2021,341286,367.5,Smi Group
Environmental & Regulatory,Street Cleansing (not chargeable to Highways),Environmental,Supplies & Services,"Equipment, Furniture & Materials",Purchase Equip + Materials,08/04/2021,335222,745,Imperial Polythene Products Ltd
Central Services to the Public,Local Tax Collection,Revenues,Supplies & Services,Communications & Computing,Software Maintenance,29/04/2021,341010,750,Northgate Public Services Uk Ltd
Environmental & Regulatory,Waste & Recycling Management,Environmental,Supplies & Services,"Equipment, Furniture & Materials",Purchase Equip + Materials,08/04/2021,339040,750,Ssi Schaefer Ltd
Central Services,Corporate & Democratic Core,Corporate & Democratic,Supplies & Services,Services,Professional Advice,15/04/2021,339875,750,Dc Commercial Solicitors
"Highways, Roads & Transport",Parking Services,Plan Pol & Transport,Premises related Expenditure,Repairs Alterations & Maintenance of Buildings,Car Park General Repairs,29/04/2021,341285,756.61,Externiture Ltd
Environmental & Regulatory,Waste management,Environmental,Transport Related Expenditure,Direct Transport Costs,Repair Materials,29/04/2021,341305,760.9,Dennis Eagle Ltd
Central Services to the Public,Management & Support Services,Finance,Supplies & Services,"Printing, Stationery & General Office Expenses",Postage Costs,15/04/2021,340099,763.27,Whistl Uk Ltd
Environmental & Regulatory,Waste & Recycling Management,Environmental,Employees,Indirect Employee Expenses,Agency Staff - Waged Posts,15/04/2021,340000,792.1,Golden Orb Solutions
Central Services to the Public,Management & Support Services,IT,Supplies & Services,"Equipment, Furniture & Materials",IT Supp and Serv AMP,22/04/2021,340574,815,Proactive Uk Ltd
Planning & Development,Development Control,Planning & Building,Supplies & Services,Services,Project Consultancy - Policy,29/04/2021,340491,825,Reading Agricultural Consultants Ltd
Planning & Development,Community Development,Community and Leisure ,Supplies & Services,Grants & Subscriptions,Grants,22/04/2021,340755,1000,Nursling & Rownhams Village Hall
Planning & Development,Community Development,Community and Leisure ,Supplies & Services,Grants & Subscriptions,Grants,15/04/2021,340200,1000,Andover And District Mencap (Millway Ward)
Central Services to the Public,Local Tax Collection,Revenues,Supplies & Services,"Printing, Stationery & General Office Expenses",External Printing,22/04/2021,340521,838.38,Latcham Direct Ltd
Environmental & Regulatory,Regulatory Services,Premises & Asset Management,Premises related Expenditure,Cleaning and domestic supplies,Contract Cleaning - Non Estates,22/04/2021,340539,845,Hi-Spec Facilities Services Plc
Central Services to the Public,Management & Support Services,Premises & Asset Management,Third Party Payments,Other Establishments,Private Contractors,29/04/2021,340720,845.55,Spear Electrical Limited
Central Services to the Public,Management & Support Services,HR Services,Supplies & Services,Miscellaneous Expenses,Medical Fees,29/04/2021,340505,1050,Flu Xpress Ltd
Cultural & Related,Open Spaces,Community and Leisure ,Premises related Expenditure,Grounds Maintenance Costs,Gm - Additional Works,08/04/2021,338350,880,Wildflower Turf Ltd
Central Services to the Public,Management & Support Services,Finance,Supplies & Services,"Printing, Stationery & General Office Expenses",Postage Costs,15/04/2021,339878,880.32,Whistl Uk Ltd
Central Services to the Public,Local Tax Collection,Revenues,Supplies & Services,Services,Professional Fees,15/04/2021,339912,0,Ross & Roberts
Cultural & Related,Open Spaces,Environmental,Transport Related Expenditure,Direct Transport Costs,Repair Materials,29/04/2021,341304,3.83,Md Services (Andover) Ltd
Environmental & Regulatory,Street Cleansing (not chargeable to Highways),Environmental,Transport Related Expenditure,Direct Transport Costs,Workshop Consumables,29/04/2021,341304,19.88,Md Services (Andover) Ltd
Central Services to the Public,Management & Support Services,Environmental,Transport Related Expenditure,Direct Transport Costs,Workshop Consumables,29/04/2021,341304,847.17,Md Services (Andover) Ltd
Central Services to the Public,Management & Support Services,Environmental,Transport Related Expenditure,Direct Transport Costs,Repair Materials,29/04/2021,341304,6.8,Md Services (Andover) Ltd
Central Services to the Public,Management & Support Services,Environmental,Supplies & Services,"Equipment, Furniture & Materials",Purchase Tools,29/04/2021,341304,45.53,Md Services (Andover) Ltd
Central Services to the Public,Management & Support Services,IT,Supplies & Services,Communications & Computing,Computer Hardware,29/04/2021,341432,920,Virtual Effect Ltd
Central Services to the Public,Management & Support Services,IT,Supplies & Services,Communications & Computing,Computer Hardware,29/04/2021,341432,15,Virtual Effect Ltd
Environmental & Regulatory,Waste management,Environmental,Supplies & Services,Miscellaneous Expenses,Vehicle insurance claims,22/04/2021,339968,941.45,Argosy Ltd T/A Andover Self Drive
Central Services to the Public,Elections,Legal & Democratic,Supplies & Services,"Printing, Stationery & General Office Expenses",Postage Costs,29/04/2021,340816,949.25,Financial Data Management Plc
Environmental & Regulatory,Waste management,Environmental,Transport Related Expenditure,Direct Transport Costs,Repair Materials,15/04/2021,339491,992.77,Dennis Eagle Ltd
Central Services to the Public,Management & Support Services,IT,Supplies & Services,Communications & Computing,Communication Links,22/04/2021,340131,1026.68,Vodafone Cable & Wireless Uk
Environmental & Regulatory,Street Cleansing (not chargeable to Highways),Environmental,Transport Related Expenditure,Direct Transport Costs,Tyres,29/04/2021,341270,33.18,Tructyre Ats
Environmental & Regulatory,Waste management,Environmental,Transport Related Expenditure,Direct Transport Costs,Tyres,29/04/2021,341270,550.35,Tructyre Ats
Environmental & Regulatory,Waste management,Environmental,Transport Related Expenditure,Direct Transport Costs,Tyres,29/04/2021,341270,21.29,Tructyre Ats
Central Services to the Public,Management & Support Services,Environmental,Transport Related Expenditure,Direct Transport Costs,Repair Materials,29/04/2021,341270,449.92,Tructyre Ats
Cultural & Related,Culture & Heritage,Community and Leisure ,Premises related Expenditure,Energy Costs,Electricity,22/04/2021,339876,667.87,Sparsholt College Hampshire
Cultural & Related,Culture & Heritage,Community and Leisure ,Premises related Expenditure,Energy Costs,Gas,22/04/2021,339876,202.7,Sparsholt College Hampshire
Cultural & Related,Culture & Heritage,Community and Leisure ,Premises related Expenditure,Water Services,Water And Sewerage Charges,22/04/2021,339876,254.34,Sparsholt College Hampshire
Cultural & Related,Open Spaces,Community and Leisure ,Third Party Payments,Private contractors,Main Contractor Costs,22/04/2021,340530,1312.5,Peoples Trust For Endangered Species
Central Services to the Public,Management & Support Services,Premises & Asset Management,Supplies & Services,Services,Professional Fees,15/04/2021,340195,1100,W & K Sykes Ltd
Central Services to the Public,Management & Support Services,Estates and Economic Development ,Third Party Payments,Private contractors,Main Contractor Costs,22/04/2021,340565,1160,Corrigenda Ltd
Housing Services,Homelessness,Housing and Environmental Health ,Supplies & Services,Miscellaneous Expenses,Bed & Breakfast,29/04/2021,339591,1178,Centennial Property Ltd
Cultural & Related,Recreation & Sport,Community and Leisure ,Supplies & Services,Services,Training Courses,29/04/2021,341317,1185,Right Directions
Environmental & Regulatory,Regulatory Services,Premises & Asset Management,Premises related Expenditure,Cleaning and domestic supplies,Contract Cleaning - Non Estates,15/04/2021,339910,1260,Hi-Spec Facilities Services Plc
Planning & Development,Development Control,Planning & Building,Employees,Indirect Employee Expenses,Temporary Staff,08/04/2021,339612,1516.55,Wadey Trees
External Trading Accounts,Business Parks,Premises & Asset Management,Premises related Expenditure,Repairs Alterations & Maintenance of Buildings,Estates premises costs - AMP,22/04/2021,340559,1299.61,Options Flooring Ltd
Central Services to the Public,Management & Support Services,Premises & Asset Management,Third Party Payments,Other Establishments,Private Contractors,22/04/2021,340561,1320,Protec Roofing Southern Ltd
Central Services to the Public,Management & Support Services,Housing and Environmental Health ,Supplies & Services,Communications & Computing,Computer Hardware,22/04/2021,340140,697.52,Exampleit Ltd
Central Services to the Public,Management & Support Services,IT,Supplies & Services,"Equipment, Furniture & Materials",IT Supp and Serv AMP,22/04/2021,340138,1395.04,Exampleit Ltd
Central Services to the Public,Local Tax Collection,Revenues,Supplies & Services,Communications & Computing,Computer Hardware,22/04/2021,340140,697.52,Exampleit Ltd
Central Services to the Public,Management & Support Services,Environmental,Supplies & Services,Communications & Computing,Software Maintenance,22/04/2021,340493,1425.18,Civica Uk Ltd
Environmental & Regulatory,Regulatory Services,Housing and Environmental Health ,Supplies & Services,Grants and subscriptions,Capital Grants,29/04/2021,341452,1725,Liftech Systems (Se) Ltd
Cultural & Related,Culture & Heritage,Premises & Asset Management,Premises related Expenditure,Repairs Alterations & Maintenance of Buildings,Planned Maintenance - Non Est,29/04/2021,340821,414.75,Movable Wall Tech Limited
Cultural & Related,Culture & Heritage,Premises & Asset Management,Premises related Expenditure,Repairs Alterations & Maintenance of Buildings,Planned Maintenance - Non Est,29/04/2021,340821,414.75,Movable Wall Tech Limited
Central Services to the Public,Management & Support Services,Premises & Asset Management,Premises related Expenditure,Repairs Alterations & Maintenance of Buildings,Planned Maintenance - Non Est,29/04/2021,340821,623.7,Movable Wall Tech Limited
Central Services to the Public,Elections,Legal & Democratic,Supplies & Services,Communications & Computing,Computer Hardware,29/04/2021,341318,1455.34,Exampleit Ltd
Central Services to the Public,Management & Support Services,Premises & Asset Management,Third Party Payments,Other Establishments,Private Contractors,29/04/2021,341290,1458.33,M S Plumbing And Heating Ltd
External Trading Accounts,Business Parks,Premises & Asset Management,Premises related Expenditure,Repairs Alterations & Maintenance of Buildings,Planned Maintenance - Non Est,29/04/2021,340996,48.03,Healthy Buildings International
External Trading Accounts,Business Parks,Premises & Asset Management,Premises related Expenditure,Repairs Alterations & Maintenance of Buildings,Planned Maintenance - Non Est,29/04/2021,340996,192.12,Healthy Buildings International
Cultural & Related,Culture & Heritage,Premises & Asset Management,Premises related Expenditure,Repairs Alterations & Maintenance of Buildings,Planned Maintenance - Non Est,29/04/2021,340996,48.03,Healthy Buildings International
Cultural & Related,Culture & Heritage,Premises & Asset Management,Premises related Expenditure,Repairs Alterations & Maintenance of Buildings,Planned Maintenance - Non Est,29/04/2021,340996,48.03,Healthy Buildings International
Cultural & Related,Culture & Heritage,Premises & Asset Management,Premises related Expenditure,Repairs Alterations & Maintenance of Buildings,Planned Maintenance - Non Est,29/04/2021,340996,48.03,Healthy Buildings International
Cultural & Related,Culture & Heritage,Premises & Asset Management,Premises related Expenditure,Repairs Alterations & Maintenance of Buildings,Planned Maintenance - Non Est,29/04/2021,340996,48.03,Healthy Buildings International
Cultural & Related,Culture & Heritage,Premises & Asset Management,Premises related Expenditure,Repairs Alterations & Maintenance of Buildings,Planned Maintenance - Non Est,29/04/2021,340996,48.03,Healthy Buildings International
Cultural & Related,Culture & Heritage,Premises & Asset Management,Premises related Expenditure,Repairs Alterations & Maintenance of Buildings,Planned Maintenance - Non Est,29/04/2021,340996,96.06,Healthy Buildings International
Central Services to the Public,Management & Support Services,Premises & Asset Management,Premises related Expenditure,Repairs Alterations & Maintenance of Buildings,Planned Maintenance - Non Est,29/04/2021,340996,48.03,Healthy Buildings International
Central Services to the Public,Management & Support Services,Premises & Asset Management,Premises related Expenditure,Repairs Alterations & Maintenance of Buildings,Planned Maintenance - Non Est,29/04/2021,340996,48.03,Healthy Buildings International
Central Services to the Public,Management & Support Services,Premises & Asset Management,Premises related Expenditure,Repairs Alterations & Maintenance of Buildings,Planned Maintenance - Non Est,29/04/2021,340996,48.03,Healthy Buildings International
Central Services to the Public,Management & Support Services,Premises & Asset Management,Premises related Expenditure,Repairs Alterations & Maintenance of Buildings,Planned Maintenance - Non Est,29/04/2021,340996,48.03,Healthy Buildings International
Environmental & Regulatory,Regulatory Services,Premises & Asset Management,Premises related Expenditure,Repairs Alterations & Maintenance of Buildings,Planned Maintenance - Non Est,29/04/2021,340996,96.06,Healthy Buildings International
Cultural & Related,Recreation & Sport,Community and Leisure ,Premises related Expenditure,Repairs Alterations & Maintenance of Buildings,Planned Maintenance - Non Est,29/04/2021,340996,48.03,Healthy Buildings International
Cultural & Related,Recreation & Sport,Community and Leisure ,Premises related Expenditure,Repairs Alterations & Maintenance of Buildings,Planned Maintenance - Non Est,29/04/2021,340996,48.03,Healthy Buildings International
Cultural & Related,Recreation & Sport,Community and Leisure ,Premises related Expenditure,Repairs Alterations & Maintenance of Buildings,Planned Maintenance - Non Est,29/04/2021,340996,48.03,Healthy Buildings International
Cultural & Related,Recreation & Sport,Community and Leisure ,Premises related Expenditure,Repairs Alterations & Maintenance of Buildings,Planned Maintenance - Non Est,29/04/2021,340996,48.03,Healthy Buildings International
Cultural & Related,Recreation & Sport,Community and Leisure ,Premises related Expenditure,Repairs Alterations & Maintenance of Buildings,Planned Maintenance - Non Est,29/04/2021,340996,48.03,Healthy Buildings International
Cultural & Related,Recreation & Sport,Community and Leisure ,Premises related Expenditure,Repairs Alterations & Maintenance of Buildings,Planned Maintenance - Non Est,29/04/2021,340996,48.03,Healthy Buildings International
Cultural & Related,Recreation & Sport,Community and Leisure ,Premises related Expenditure,Repairs Alterations & Maintenance of Buildings,Planned Maintenance - Non Est,29/04/2021,340996,48.03,Healthy Buildings International
Cultural & Related,Recreation & Sport,Community and Leisure ,Premises related Expenditure,Repairs Alterations & Maintenance of Buildings,Planned Maintenance - Non Est,29/04/2021,340996,48.03,Healthy Buildings International
Environmental & Regulatory,"Cemetery, Cremation and Mortuary Services",Community and Leisure ,Premises related Expenditure,Repairs Alterations & Maintenance of Buildings,Planned Maintenance - Non Est,29/04/2021,340996,48.03,Healthy Buildings International
Environmental & Regulatory,"Cemetery, Cremation and Mortuary Services",Community and Leisure ,Premises related Expenditure,Repairs Alterations & Maintenance of Buildings,Planned Maintenance - Non Est,29/04/2021,340996,48.03,Healthy Buildings International
Cultural & Related,Open Spaces,Community and Leisure ,Premises related Expenditure,Repairs Alterations & Maintenance of Buildings,Planned Maintenance - Non Est,29/04/2021,340996,48.03,Healthy Buildings International
Cultural & Related,Culture & Heritage,Community and Leisure ,Premises related Expenditure,Repairs Alterations & Maintenance of Buildings,Planned Maintenance - Non Est,29/04/2021,340996,48.03,Healthy Buildings International
"Highways, Roads & Transport",Parking Services,Plan Pol & Transport,Premises related Expenditure,Repairs Alterations & Maintenance of Buildings,Planned Maintenance - Non Est,29/04/2021,340996,48.03,Healthy Buildings International
Cultural & Related,Recreation & Sport,Community and Leisure ,Supplies & Services,Grants & Subscriptions,Grants,29/04/2021,341490,1542,Leisure-Net Solutions Ltd
Cultural & Related,Open Spaces,Environmental,Premises related Expenditure,Water Services,Water And Sewerage Charges,15/04/2021,339979,1560,Aquam Water Services
Central Services to the Public,Elections,Legal & Democratic,Supplies & Services,"Printing, Stationery & General Office Expenses",Postage Costs,15/04/2021,339587,1888.99,Financial Data Management Plc
Central Services to the Public,Management & Support Services,Environmental,Transport Related Expenditure,Direct Transport Costs,Diesel,15/04/2021,339561,1576.43,Wp Group Limited
Environmental & Regulatory,Waste management,Environmental,Transport Related Expenditure,Direct Transport Costs,External Garages,15/04/2021,339969,45,Tructyre Ats
Environmental & Regulatory,Waste management,Environmental,Transport Related Expenditure,Direct Transport Costs,Tyres,15/04/2021,339969,1533.75,Tructyre Ats
Planning & Development,Community Development,Community and Leisure ,Supplies & Services,Grants & Subscriptions,Grants,15/04/2021,340201,2000,Andover & District Mencap
Planning & Development,Community Development,Community and Leisure ,Supplies & Services,Grants & Subscriptions,Grants,15/04/2021,340202,2000,Test Valley Arts Foundation
Environmental & Regulatory,Community Development,Community and Leisure ,Supplies & Services,Miscellaneous Expenses,Promotions / Special Events,15/04/2021,340124,2000,Yellow Brick Road Projects
Cultural & Related,Culture & Heritage,Community and Leisure ,Premises related Expenditure,Cleaning and domestic supplies,Cleaning Materials-Purchases,15/04/2021,339585,1698.48,Phs Group Plc
Central Services to the Public,Management & Support Services,IT,Supplies & Services,Services,Project Consultancy - Systems,29/04/2021,341287,1700,Transparity
Central Services to the Public,Management & Support Services,Chief Executive's,Supplies & Services,Communications & Computing,Software Maintenance,15/04/2021,339936,1036.95,Phoenix Software Ltd
Central Services to the Public,Management & Support Services,Community and Leisure ,Supplies & Services,Communications & Computing,Software Maintenance,15/04/2021,339936,716.1,Phoenix Software Ltd
External Trading Accounts,Business Parks,Premises & Asset Management,Premises related Expenditure,Miscellaneous Expenses,Service Charge,22/04/2021,340763,2240,Test Valley Borough Council
Cultural & Related,Tourism,Planning Policy & Economic Development ,Premises related Expenditure,Repairs Alterations & Maintenance of Buildings,Estates premises costs - AMP,29/04/2021,340545,1887.82,Elliotts Premier Roofing Ltd
Planning & Development,Building Control,Planning & Building,Supplies & Services,Services,Professional Fees,15/04/2021,340119,1951.75,Fareham Borough Council
Cultural & Related,Open Spaces,Environmental,Transport Related Expenditure,Direct Transport Costs,Repair Materials,15/04/2021,339563,1964.14,Hunt Forest Group Ltd
External Trading Accounts,Business Parks,Premises & Asset Management,Supplies & Services,Services,Professional Fees,22/04/2021,339485,2000,Smith Price Llp
Planning & Development,Planning Policy,Plan Pol & Transport,Supplies & Services,Grants & Subscriptions,Grants,29/04/2021,341426,2470,Hampshire County Council
Environmental & Regulatory,Community Development,Community and Leisure ,Supplies & Services,"Equipment, Furniture & Materials",Purchase Equip + Materials,15/04/2021,340123,2500,Yellow Brick Road Projects
Cultural & Related,Open Spaces,Environmental,Employees,Indirect Employee Expenses,Advertising Of Vacancies,22/04/2021,340514,597.48,Newsquest Media Group Ltd
Environmental & Regulatory,Street Cleansing (not chargeable to Highways),Environmental,Employees,Indirect Employee Expenses,Advertising Of Vacancies,22/04/2021,340514,896.23,Newsquest Media Group Ltd
Environmental & Regulatory,Waste management,Environmental,Employees,Indirect Employee Expenses,Advertising Of Vacancies,22/04/2021,340514,597.48,Newsquest Media Group Ltd
Planning & Development,Community Development,Community and Leisure ,Supplies & Services,Grants & Subscriptions,Grants,22/04/2021,340969,2599,Abbotts Ann Parish Council
Environmental & Regulatory,Regulatory Services,Housing and Environmental Health ,Supplies & Services,Miscellaneous Expenses,Kennel fees,08/04/2021,339571,2053.44,Three Oak Boarding Kennels
Cultural & Related,Open Spaces,Community and Leisure ,Premises related Expenditure,Grounds Maintenance Costs,Gm - Additional Works,22/04/2021,340562,2250,Intratest Ltd
Environmental & Regulatory,Waste management,Environmental,Employees,Indirect Employee Expenses,Agency Staff - Waged Posts,29/04/2021,340998,2382.95,24-7 Staffing
Central Services to the Public,Management & Support Services,IT,Supplies & Services,"Equipment, Furniture & Materials",IT Supp and Serv AMP,29/04/2021,341444,2400,Pure Technology Group
Environmental & Regulatory,Waste management,Environmental,Transport Related Expenditure,Direct Transport Costs,Repair Materials,15/04/2021,339992,2002.09,Dennis Eagle Ltd
Environmental & Regulatory,Waste management,Environmental,Transport Related Expenditure,Direct Transport Costs,Repair Materials,15/04/2021,339992,440.59,Dennis Eagle Ltd
"Highways, Roads & Transport",Parking Services,Plan Pol & Transport,Supplies & Services,Communications & Computing,Computer Software,08/04/2021,339488,2451,Ina Parc Ltd
Planning & Development,Planning Policy,Plan Pol & Transport,Supplies & Services,Grants & Subscriptions,Grants,29/04/2021,341427,2943.5,Hampshire County Council
Environmental & Regulatory,Waste management,Environmental,Transport Related Expenditure,Direct Transport Costs,Repair Materials,22/04/2021,340097,2509.72,Dennis Eagle Ltd
Central Services to the Public,Management & Support Services,Legal & Democratic,Supplies & Services,"Printing, Stationery & General Office Expenses",Postage Costs,29/04/2021,340497,2535.1,Dx Network Services Limited
Central Services to the Public,Management & Support Services,Premises & Asset Management,Third Party Payments,Other Establishments,Contract Catering,22/04/2021,340518,2679.27,Edwards And Ward Ltd
Central Services to the Public,Management & Support Services,Premises & Asset Management,Third Party Payments,Other Establishments,Private Contractors,29/04/2021,340992,2750,V A Hutchison Flooring Ltd
Environmental & Regulatory,Street Cleansing (not chargeable to Highways),Environmental,Premises related Expenditure,Water Services,Water And Sewerage Charges,15/04/2021,339980,2790,Aquam Water Services
Planning & Development,Economic Development,Planning Policy & Economic Development ,Supplies & Services,Services,Training Courses,14/04/2021,339904,3375,Coolled Limited
External Trading Accounts,Business Parks,Premises & Asset Management,Supplies & Services,Services,Legal Fees,15/04/2021,340194,2860,Ashfords Llp
Central Services to the Public,Management & Support Services,Environmental,Transport Related Expenditure,Direct Transport Costs,Diesel,22/04/2021,340495,2977.5,Wp Group Limited
Central Services to the Public,Management & Support Services,Premises & Asset Management,Third Party Payments,Other Establishments,Private Contractors,22/04/2021,340564,3050,Protec Roofing Southern Ltd
Environmental & Regulatory,Regulatory Services,Housing and Environmental Health ,Supplies & Services,Grants and subscriptions,Capital Grants,22/04/2021,340759,3760.45,Wessex Lift Co Ltd
Environmental & Regulatory,Street Cleansing (not chargeable to Highways),Environmental,Employees,Indirect Employee Expenses,Agency Staff - Waged Posts,29/04/2021,340999,966.44,24-7 Staffing
Environmental & Regulatory,Waste management,Environmental,Employees,Indirect Employee Expenses,Agency Staff - Waged Posts,29/04/2021,340999,2140.76,24-7 Staffing
Environmental & Regulatory,Waste management,Environmental,Employees,Indirect Employee Expenses,Agency Staff - Waged Posts,29/04/2021,340999,104.48,24-7 Staffing
Cultural & Related,Open Spaces,Community and Leisure ,Employees,Indirect Employee Expenses,Temporary Staff,15/04/2021,340188,3250,The Arboricultural Co Ltd
Environmental & Regulatory,Regulatory Services,Legal & Democratic,Supplies & Services,"Equipment, Furniture & Materials",Purchase Equip + Materials,22/04/2021,340717,3427.5,Newauto Ltd T/A Mogo Uk
Central Services to the Public,Management & Support Services,Finance,Supplies & Services,Services,Insurance ,29/04/2021,341277,4131.59,Zurich Insurance Company
Planning & Development,Development Control,Planning & Building,Supplies & Services,"Printing, Stationery & General Office Expenses",Written Media,22/04/2021,339567,4165,Haymarket Media Group Ltd
External Trading Accounts,Business Parks,Premises & Asset Management,Supplies & Services,Services,Professional Fees,22/04/2021,339586,3625,Smith Price Llp
Central Services to the Public,Management & Support Services,IT,Supplies & Services,Communications & Computing,Communication Links,15/04/2021,339987,3689,Virgin Media Payments Ltd
Environmental & Regulatory,Regulatory Services,Housing and Environmental Health ,Supplies & Services,Grants and subscriptions,Capital Grants,15/04/2021,340125,4508.18,Spc Bathrooms Ltd
Central Services to the Public,Local Tax Collection,Revenues,Supplies & Services,"Printing, Stationery & General Office Expenses",External Printing,22/04/2021,340519,2212.57,Latcham Direct Ltd
Central Services to the Public,Local Tax Collection,Revenues,Supplies & Services,"Printing, Stationery & General Office Expenses",External Printing,22/04/2021,340519,2212.58,Latcham Direct Ltd
Environmental & Regulatory,Regulatory Services,Housing and Environmental Health ,Supplies & Services,Grants and subscriptions,Capital Grants,15/04/2021,340126,5580.85,A & E Builders
Central Services to the Public,Management & Support Services,Finance,Supplies & Services,Services,Insurance ,29/04/2021,341276,6703.2,Zurich Insurance Company
Central Services to the Public,Management & Support Services,Environmental,Transport Related Expenditure,Direct Transport Costs,Repair Materials,15/04/2021,340130,5793.95,Dorset Auto Spares Ltd
Environmental & Regulatory,Regulatory Services,Housing and Environmental Health ,Supplies & Services,Grants and subscriptions,Capital Grants,22/04/2021,340758,7562.57,Bartram Building Maintenance Services
Environmental & Regulatory,Waste & Recycling Management,Environmental,Supplies & Services,"Printing, Stationery & General Office Expenses",External Printing,08/04/2021,338845,6460,Morgard Court Ltd T/A Gardners
Central Services to the Public,Local Tax Collection,Revenues,Supplies & Services,"Printing, Stationery & General Office Expenses",External Printing,29/04/2021,340544,6463.55,Latcham Direct Ltd
Cultural & Related,Recreation & Sport,Community and Leisure ,Supplies & Services,Grants and subscriptions,Capital Grants,22/04/2021,340756,9003.3,Longparish Cricket Club
External Trading Accounts,Business Parks,Premises & Asset Management,Premises related Expenditure,Repairs Alterations & Maintenance of Buildings,Estates premises costs - AMP,22/04/2021,340721,7736,Purbeck Civil Engineering Limited
Central Services to the Public,Management & Support Services,Environmental,Transport Related Expenditure,Direct Transport Costs,Diesel,15/04/2021,339481,7968,Wp Group Limited
Environmental & Regulatory,Regulatory Services,Housing and Environmental Health ,Supplies & Services,Grants and subscriptions,Capital Grants,08/04/2021,339669,9707.33,Northfield Property Solutions Limited
Central Services to the Public,Management & Support Services,Environmental,Transport Related Expenditure,Direct Transport Costs,Diesel,29/04/2021,340840,8403.1,Wp Group Limited
External Trading Accounts,Business Parks,Estates and Economic Development ,Supplies & Services,Services,Property Acquisition,29/04/2021,340189,8995.23,Winckworth Sherwood
External Trading Accounts,Business Parks,Premises & Asset Management,Premises related Expenditure,Repairs Alterations & Maintenance of Buildings,Chantry Centre AMP,29/04/2021,341398,9240,Avenue Electrical Ltd
Central Services to the Public,Management & Support Services,Environmental,Transport Related Expenditure,Direct Transport Costs,Vehicles and Plant,15/04/2021,339708,11400,Civica Uk Ltd
Central Services to the Public,Management & Support Services,Finance,Supplies & Services,Services,Insurance ,15/04/2021,340182,18545.95,Aon Uk Ltd
Cultural & Related,Open Spaces,Community and Leisure ,Premises related Expenditure,Repairs Alterations & Maintenance of Buildings,Estates premises costs - AMP,29/04/2021,341001,18506,Rocon Contractors Ltd
Central Services to the Public,Local Tax Collection,Revenues,Supplies & Services,Miscellaneous Expenses,Other Miscellaneous Costs,29/04/2021,340987,19773.75,Andover Town Centre Bid Ltd
Central Services to the Public,Management & Support Services,Environmental,Transport Related Expenditure,Direct Transport Costs,Vehicles and Plant,29/04/2021,340110,23750,Hunt Forest Group Ltd
Central Services to the Public,Management & Support Services,IT,Supplies & Services,Communications & Computing,Software Maintenance,29/04/2021,341517,25817.7,Esri (Uk) Ltd
Central Services to the Public,Management & Support Services,Finance,Supplies & Services,Services,Insurance ,29/04/2021,341275,31291.45,Zurich Insurance Company
Central Services to the Public,Management & Support Services,Revenues,Supplies & Services,Communications & Computing,Software Maintenance,22/04/2021,338550,26244.25,Capita Business Services
Central Services to the Public,Management & Support Services,Revenues,Supplies & Services,Communications & Computing,Software Maintenance,22/04/2021,338549,26625,Abavus Limited
Central Services to the Public,Local Tax Collection,Revenues,Supplies & Services,"Printing, Stationery & General Office Expenses",External Printing,22/04/2021,340520,27158.48,Latcham Direct Ltd
Central Services to the Public,Management & Support Services,Finance,Supplies & Services,Services,Insurance ,15/04/2021,340187,37021.75,Aon Uk Ltd
Central Services to the Public,Elections,Legal & Democratic,Supplies & Services,"Printing, Stationery & General Office Expenses",Postage Costs,29/04/2021,340671,37270.02,Financial Data Management Plc
External Trading Accounts,Business Parks,Premises & Asset Management,Premises related Expenditure,Miscellaneous Expenses,Service Charge,22/04/2021,340762,40767.5,Test Valley Borough Council
Central Services to the Public,Management & Support Services,Finance,Supplies & Services,Services,Insurance ,15/04/2021,340184,44970.23,Aon Uk Ltd
Central Services,Corporate & Democratic Core,Corporate & Democratic,Supplies & Services,Communications & Computing,Software Maintenance,15/04/2021,339895,37937.14,Advanced Business Solutions
Central Services to the Public,Management & Support Services,Finance,Supplies & Services,Services,Insurance ,15/04/2021,340183,50898.75,Aon Uk Ltd
Cultural & Related,Open Spaces,Community and Leisure ,Third Party Payments,Private contractors,Main Contractor Costs,29/04/2021,339705,19136,The Hampshire & Iow Wildlife Trust
Cultural & Related,Open Spaces,Community and Leisure ,Premises related Expenditure,Grounds Maintenance Costs,Gm - Additional Works,29/04/2021,339705,24163,The Hampshire & Iow Wildlife Trust
Cultural & Related,Culture & Heritage,Premises & Asset Management,Premises related Expenditure,Repairs Alterations & Maintenance of Buildings,Estates premises costs - AMP,29/04/2021,340196,44811.38,Stonewest Limited
External Trading Accounts,Property Investments,Estates and Economic Development ,Third Party Payments,Private contractors,Main Contractor Costs,29/04/2021,340843,46748.07,Kier Property Developments Ltd.
Cultural & Related,Open Spaces,Community and Leisure ,Premises related Expenditure,Repairs Alterations & Maintenance of Buildings,Estates premises costs - AMP,08/04/2021,339085,47082,Purbeck Civil Engineering Limited
External Trading Accounts,Business Parks,Premises & Asset Management,Premises related Expenditure,Miscellaneous Expenses,Service Charge,22/04/2021,340764,62080.11,Test Valley Borough Council
Central Services to the Public,Management & Support Services,Environmental,Transport Related Expenditure,Direct Transport Costs,Vehicles and Plant,08/04/2021,338879,54300,T H White Ltd
Central Services to the Public,Management & Support Services,Estates and Economic Development ,Third Party Payments,Private contractors,Main Contractor Costs,29/04/2021,341516,61508.7,Tesla Group Limited
Central Services to the Public,Management & Support Services,Environmental,Transport Related Expenditure,Direct Transport Costs,Vehicles and Plant,15/04/2021,340197,64900,T H White Ltd
Central Services to the Public,Management & Support Services,Finance,Supplies & Services,Services,Insurance ,15/04/2021,340186,79226.96,Aon Uk Ltd
Environmental & Regulatory,Regulatory Services,Premises & Asset Management,Supplies & Services,Services,Professional Fees,22/04/2021,340761,11585,Test Valley Borough Council
"Highways, Roads & Transport",Parking Services,Plan Pol & Transport,Supplies & Services,Services,Professional Fees,22/04/2021,340761,29790,Test Valley Borough Council
Cultural & Related,Recreation & Sport,Community and Leisure ,Premises related Expenditure,Repairs Alterations & Maintenance of Buildings,Estates premises costs - AMP,29/04/2021,339482,1897.31,Gristwood & Toms Ltd
Cultural & Related,Open Spaces,Community and Leisure ,Premises related Expenditure,Repairs Alterations & Maintenance of Buildings,Estates premises costs - AMP,29/04/2021,339482,937.01,Gristwood & Toms Ltd
Cultural & Related,Open Spaces,Community and Leisure ,Premises related Expenditure,Grounds Maintenance Costs,Non Contract Tree Works,29/04/2021,339482,8189.89,Gristwood & Toms Ltd
Cultural & Related,Open Spaces,Community and Leisure ,Premises related Expenditure,Repairs Alterations & Maintenance of Buildings,Estates premises costs - AMP,29/04/2021,339482,75226.23,Gristwood & Toms Ltd
"Highways, Roads & Transport",Highways and roads - maintenance,Plan Pol & Transport,Third Party Payments,Private contractors,Main Contractor Costs,15/04/2021,339602,104386.56,Hampshire County Council
Cultural & Related,Culture & Heritage,Estates and Economic Development ,Third Party Payments,Private contractors,Main Contractor Costs,15/04/2021,339709,87257.77,Novus Property Solutions Ltd
Central Services to the Public,Management & Support Services,Finance,Supplies & Services,Services,Insurance ,15/04/2021,340185,122120.5,Aon Uk Ltd
Cultural & Related,Recreation & Sport,Community and Leisure ,Supplies & Services,Grants & Subscriptions,Contributions,29/04/2021,341722,142149,Places For People Leisure Ltd - Developments
